fUST/lending_fUST_20250901
["ID","MTS","AMOUNT","RATE_DAILY","PERIOD"]
[382577538,1756673454682,-480.0,0.00017373,2]
[382577540,1756673454692,-480.0,0.00017373,2]
[382577542,1756673454701,-480.0,0.00017373,2]
[382577544,1756673454711,-480.0,0.00017373,2]
[382577546,1756673454721,-593.38,0.00017373,2]
[382577548,1756673454730,-480.0,0.00017373,2]
[382577550,1756673454740,-1220.51,0.00017373,2]
[382577552,1756673454750,-480.0,0.00017373,2]
[382577554,1756673454759,-480.0,0.00017373,2]
[382577556,1756673454768,-480.0,0.00017373,2]
[382577558,1756673454778,-1022.86,0.00017373,2]
[382577560,1756673454787,-916.14,0.00017373,2]
[382577562,1756673454797,-290.01900254,0.00017373,2]
[382577564,1756673454806,-850.93,0.00017373,2]
[382577566,1756673454817,-480.0,0.00017373,2]
[382577568,1756673454826,-480.0,0.00017373,2]
[382577570,1756673454836,-480.0,0.00017373,2]
[382577572,1756673454845,-480.0,0.00017373,2]
[382577574,1756673454855,-480.0,0.00017373,2]
[382577576,1756673454865,-480.0,0.00017373,2]
[382577578,1756673454874,-480.0,0.00017373,2]
[382577580,1756673454883,-588.33396438,0.00017373,2]
[382577582,1756673454893,-1186.69,0.00017373,2]
[382577584,1756673454903,-842.98,0.00017373,2]
[382577586,1756673454912,-825.1,0.00017373,2]
[382577588,1756673454922,-881.13,0.00017373,2]
[382577590,1756673454932,-1039.06,0.00017373,2]
[382577592,1756673454942,-3326.58,0.00017373,2]
[382577594,1756673454952,-722.88,0.00017373,2]
[382577596,1756673454961,-1423.76,0.00017373,2]
[382577599,1756673454971,-480.0,0.00017373,2]
[382577601,1756673454981,-480.0,0.00017373,2]
[382577603,1756673454990,-1015.8,0.00017373,2]
[382577605,1756673455000,-151.0,0.00017373,2]
[382577607,1756673455010,-480.0,0.00017373,2]
[382577609,1756673455019,-480.0,0.00017373,2]
[382577611,1756673455029,-5491.99,0.00017373,2]
[382577613,1756673455038,-507.06,0.00017373,2]
[382577615,1756673455049,-480.0,0.00017373,2]
[382577617,1756673455058,-4163.29,0.00017373,2]
[382577619,1756673455068,-480.0,0.00017373,2]
[382577621,1756673455078,-1040.86,0.00017373,2]
[382577623,1756673455087,-484.48,0.00017373,2]
[382577625,1756673455097,-480.0,0.00017373,2]
[382577627,1756673455106,-1868.72,0.00017373,2]
[382577629,1756673455115,-160.120775,0.00017373,2]
[382577631,1756673455125,-620.62,0.00017373,2]
[382577633,1756673455135,-160.120775,0.00017373,2]
[382577635,1756673455144,-160.120775,0.00017373,2]
[382577637,1756673455154,-160.120775,0.00017373,2]
[382577639,1756673455164,-151.0,0.00017373,2]
[382577641,1756673455173,-200.0,0.00017373,3]
[382577643,1756673455183,-200.0,0.00017373,3]
[382577645,1756673455193,-200.0,0.00017373,3]
[382577647,1756673455202,-200.0,0.00017373,3]
[382577649,1756673455212,-480.0,0.00017373,2]
[382577651,1756673455221,-200.0,0.00017373,3]
[382577654,1756673455232,-480.0,0.00017373,2]
[382577655,1756673455242,-1102.26,0.00017373,2]
[382577658,1756673455252,-480.0,0.00017373,2]
[382577660,1756673455262,-3885.57,0.00017373,2]
[382577662,1756673455271,-151.0,0.00017373,2]
[382577664,1756673455281,-531.27,0.00017373,2]
[382577666,1756673455291,-480.0,0.00017373,2]
[382577668,1756673455301,-480.0,0.00017373,2]
[382577670,1756673455310,-480.0,0.00017373,2]
[382577672,1756673455319,-2614.63,0.00017373,2]
[382577674,1756673455328,-480.0,0.00017373,2]
[382577676,1756673455338,-480.0,0.00017373,2]
[382577678,1756673455347,-481.17,0.00017373,2]
[382577680,1756673455357,-822.54,0.00017373,2]
[382577682,1756673455367,-151.0,0.00017374,2]
[382577684,1756673455376,-765.06,0.00017374,2]
[382577686,1756673455385,-480.0,0.00017374,2]
[382577688,1756673455395,-480.0,0.00017374,2]
[382577690,1756673455404,-480.0,0.00017374,2]
[382577692,1756673455414,-480.0,0.00017374,2]
[382577694,1756673455424,-480.0,0.00017374,2]
[382577696,1756673455433,-480.0,0.00017374,2]
[382577698,1756673455442,-480.0,0.00017374,2]
[382577700,1756673455452,-728.62,0.00017374,2]
[382577702,1756673455461,-480.0,0.00017374,2]
[382577704,1756673455471,-480.0,0.00017374,2]
[382577706,1756673455480,-480.0,0.00017374,2]
[382577708,1756673455490,-480.0,0.00017374,2]
[382577710,1756673455499,-151.0,0.00017374,2]
[382577712,1756673455509,-480.0,0.00017374,2]
[382577714,1756673455520,-762.15,0.00017374,2]
[382577716,1756673455529,-151.0,0.00017374,2]
[382577718,1756673455542,-1144.33,0.00017374,2]
[382577720,1756673455551,-480.0,0.00017374,2]
[382577723,1756673455564,-480.0,0.00017374,2]
[382577725,1756673455573,-1050.48,0.00017374,2]
[382577727,1756673455584,-480.0,0.00017374,2]
[382577729,1756673455593,-1117.78,0.00017374,2]
[382577731,1756673455603,-480.0,0.00017374,2]
[382577733,1756673455614,-1032.14,0.00017374,2]
[382577735,1756673455623,-831.94,0.00017374,2]
[382577737,1756673455633,-480.0,0.00017374,2]
[382577739,1756673455643,-560.19,0.00017374,2]
[382577741,1756673455653,-151.0,0.00017374,2]
[382577743,1756673455663,-151.0,0.00017374,2]
[382577745,1756673455673,-480.0,0.00017374,2]
[382577747,1756673455683,-1141.8,0.00017374,2]
[382577749,1756673455693,-480.0,0.00017374,2]
[382577751,1756673455702,-480.0,0.00017374,2]
[382577753,1756673455711,-573.44,0.00017374,2]
[382577755,1756673455721,-545.32,0.00017374,2]
[382577757,1756673455731,-480.0,0.00017374,2]
[382577759,1756673455740,-480.0,0.00017374,2]
[382577761,1756673455750,-716.31,0.00017374,2]
[382577763,1756673455759,-480.0,0.00017374,2]
[382577765,1756673455768,-582.97,0.00017374,2]
[382577767,1756673455777,-496.39,0.00017374,2]
[382577769,1756673455787,-151.0,0.00017374,2]
[382577771,1756673455796,-646.68,0.00017374,2]
[382577773,1756673455806,-480.0,0.00017374,2]
[382577775,1756673455815,-480.0,0.00017374,2]
[382577777,1756673455825,-480.0,0.00017374,2]
[382577779,1756673455835,-480.0,0.00017374,2]
[382577781,1756673455844,-893.99,0.00017374,2]
[382577783,1756673455854,-909.02,0.00017374,2]
[382577785,1756673455864,-480.0,0.00017374,2]
[382577803,1756673455874,-904.5,0.00017374,2]
[382577805,1756673456030,-613.27,0.00017374,2]
[382577807,1756673456039,-955.45,0.00017374,2]
[382577809,1756673456048,-931.73,0.00017374,2]
[382577811,1756673456057,-480.0,0.00017374,2]
[382577813,1756673456066,-480.0,0.00017374,2]
[382577815,1756673456076,-480.0,0.00017374,2]
[382577817,1756673456085,-480.0,0.00017374,2]
[382577819,1756673456094,-1045.92,0.00017374,2]
[382577821,1756673456107,-929.09,0.00017374,2]
[382577823,1756673456116,-480.0,0.00017374,2]
[382577825,1756673456125,-229.27187394,0.00017374,2]
[382577827,1756673456135,-480.0,0.00017374,2]
[382577829,1756673456144,-886.28,0.00017374,2]
[382577831,1756673456153,-151.0,0.00017374,2]
[382577833,1756673456163,-1574.05,0.00017374,2]
[382577835,1756673456173,-480.0,0.00017374,2]
[382577837,1756673456183,-151.0,0.00017374,2]
[382577839,1756673456192,-480.0,0.00017374,2]
[382577841,1756673456201,-480.0,0.00017374,2]
[382577843,1756673456211,-672.84,0.00017374,2]
[382577845,1756673456220,-269.855448,0.00017374,2]
[382577847,1756673456229,-269.855448,0.00017374,2]
[382577849,1756673456238,-269.855448,0.00017374,2]
[382577850,1756673456247,-269.855448,0.00017374,2]
[382577852,1756673456256,-480.0,0.00017374,2]
[382577854,1756673456267,-559.21,0.00017374,2]
[382577856,1756673456276,-480.0,0.00017374,2]
[382577858,1756673456286,-480.0,0.00017374,2]
[382577860,1756673456296,-630.76,0.00017374,2]
[382577862,1756673456306,-480.0,0.00017374,2]
[382577864,1756673456316,-480.0,0.00017374,2]
[382577866,1756673456325,-480.0,0.00017374,2]
[382577868,1756673456335,-1595.9,0.00017374,2]
[382577870,1756673456345,-480.0,0.00017374,2]
[382577872,1756673456354,-953.75,0.00017374,2]
[382577874,1756673456363,-480.0,0.00017374,2]
[382577876,1756673456372,-555.53,0.00017374,2]
[382577878,1756673456381,-480.0,0.00017374,2]
[382577880,1756673456390,-480.0,0.00017374,2]
[382577882,1756673456399,-480.0,0.00017374,2]
[382577884,1756673456408,-545.88,0.00017374,2]
[382577886,1756673456418,-215.80757805,0.00017374,2]
[382577888,1756673456427,-509.83,0.00017374,2]
[382577890,1756673456436,-480.0,0.00017374,2]
[382577892,1756673456446,-155.599794,0.00017374,2]
[382577894,1756673456455,-151.0,0.00017374,2]
[382577896,1756673456464,-480.0,0.00017374,2]
[382577897,1756673456473,-151.0,0.00017374,2]
[382577899,1756673456482,-1156.65,0.00017374,2]
[382577901,1756673456491,-151.0,0.00017374,2]
[382577903,1756673456500,-151.0,0.00017374,2]
[382577905,1756673456509,-652.47,0.00017374,2]
[382577907,1756673456518,-151.0,0.00017374,2]
[382577909,1756673456527,-151.0,0.00017374,2]
[382577911,1756673456536,-280.615118,0.00017374,2]
[382577913,1756673456549,-480.0,0.00017374,2]
[382577915,1756673456558,-480.0,0.00017374,2]
[382577917,1756673456567,-151.0,0.00017374,2]
[382577919,1756673456576,-591.58,0.00017374,2]
[382577921,1756673456585,-1000.0,0.00017374,2]
[382577923,1756673456595,-1000.0,0.00017374,2]
[382577925,1756673456604,-1000.0,0.00017374,2]
[382577927,1756673456613,-1000.0,0.00017374,2]
[382577929,1756673456622,-481.47,0.00017374,2]
[382577931,1756673456632,-1000.0,0.00017374,2]
[382577933,1756673456641,-1000.0,0.00017374,2]
[382577935,1756673456651,-1000.0,0.00017374,2]
[382577936,1756673456660,-1000.0,0.00017374,2]
[382577938,1756673456670,-1000.0,0.00017374,2]
[382577940,1756673456679,-1000.0,0.00017374,2]
[382577942,1756673456688,-1000.0,0.00017374,2]
[382577944,1756673456697,-1000.0,0.00017374,2]
[382577946,1756673456706,-1000.0,0.00017374,2]
[382577948,1756673456716,-1000.0,0.00017374,2]
[382577950,1756673456725,-170.555053,0.00017374,2]
[382577952,1756673456734,-1000.0,0.00017374,2]
[382577954,1756673456743,-1000.0,0.00017374,2]
[382577956,1756673456753,-1000.0,0.00017374,2]
[382577958,1756673456762,-1000.0,0.00017374,2]
[382577960,1756673456771,-1122.21,0.00017375,2]
[382577962,1756673456780,-480.0,0.00017375,2]
[382577964,1756673456790,-495.96,0.00017375,2]
[382577966,1756673456799,-531.27,0.00017375,2]
[382577967,1756673456808,-1075.81,0.00017375,2]
[382577969,1756673456817,-192.28287376,0.00017375,2]
[382577971,1756673456827,-1033.65,0.00017375,2]
[382577973,1756673456836,-1105.19,0.00017375,2]
[382577975,1756673456845,-480.0,0.00017375,2]
[382577977,1756673456854,-480.0,0.00017375,2]
[382577979,1756673456864,-480.0,0.00017375,2]
[382577981,1756673456873,-480.0,0.00017375,2]
[382577983,1756673456883,-573.88,0.00017375,2]
[382577985,1756673456892,-480.0,0.00017375,2]
[382577987,1756673456902,-480.0,0.00017375,2]
[382577989,1756673456912,-480.0,0.00017375,2]
[382577991,1756673456921,-480.0,0.00017375,2]
[382577993,1756673456931,-480.0,0.00017375,2]
[382577995,1756673456940,-480.0,0.00017375,2]
[382577997,1756673456949,-480.0,0.00017375,2]
[382577999,1756673456958,-480.0,0.00017375,2]
[382578001,1756673456967,-480.0,0.00017375,2]
[382578003,1756673456976,-480.0,0.00017375,2]
[382578005,1756673456985,-480.0,0.00017375,2]
[382578007,1756673456997,-480.0,0.00017375,2]
[382578008,1756673457006,-480.0,0.00017375,2]
[382578010,1756673457015,-480.0,0.00017375,2]
[382578012,1756673457025,-618.67,0.00017375,2]
[382578014,1756673457034,-480.0,0.00017375,2]
[382578016,1756673457044,-480.0,0.00017375,2]
[382578018,1756673457053,-272.63163788,0.00017375,2]
[382578020,1756673457063,-595.68,0.00017375,2]
[382578022,1756673457071,-151.0,0.00017375,2]
[382578024,1756673457081,-188.55317972,0.00017375,2]
[382578026,1756673457090,-480.0,0.00017375,2]
[382578028,1756673457099,-480.0,0.00017375,2]
[382578030,1756673457108,-499.51,0.00017375,2]
[382578032,1756673457117,-480.0,0.00017375,2]
[382578034,1756673457127,-480.0,0.00017375,2]
[382578036,1756673457137,-812.3,0.00017375,2]
[382578038,1756673457146,-480.0,0.00017375,2]
[382578040,1756673457155,-500.0,0.00017375,2]
[382578041,1756673457164,-480.0,0.00017375,2]
[382578043,1756673457174,-703.21,0.00017375,2]
[382578045,1756673457184,-480.0,0.00017375,2]
[382578047,1756673457194,-480.0,0.00017375,2]
[382578049,1756673457204,-511.75,0.00017375,2]
[382578051,1756673457213,-480.0,0.00017375,2]
[382578053,1756673457223,-480.0,0.00017375,2]
[382578055,1756673457232,-654.74,0.00017375,2]
[382578057,1756673457241,-480.0,0.00017375,2]
[382578059,1756673457251,-874.53,0.00017375,2]
[382578061,1756673457260,-480.0,0.00017375,2]
[382578063,1756673457269,-480.0,0.00017375,2]
[382578065,1756673457279,-492.47,0.00017375,2]
[382578067,1756673457287,-480.0,0.00017375,2]
[382578069,1756673457296,-151.0,0.00017375,2]
[382578071,1756673457306,-151.0,0.00017375,2]
[382578073,1756673457315,-480.0,0.00017375,2]
[382578075,1756673457325,-480.0,0.00017375,2]
[382578077,1756673457334,-480.0,0.00017375,2]
[382578079,1756673457343,-480.0,0.00017375,2]
[382578081,1756673457353,-1196.05,0.00017375,2]
[382578083,1756673457362,-480.0,0.00017375,2]
[382578085,1756673457371,-704.47,0.00017375,2]
[382578087,1756673457381,-480.0,0.00017375,2]
[382578089,1756673457391,-260.31049561,0.00017376,2]
[382578091,1756673457400,-251.64224544,0.00017376,2]
[382578093,1756673457410,-356.65165734,0.00017376,2]
[382578094,1756673457419,-1311.0,0.00017376,2]
[382578096,1756673457429,-491.28981726,0.00017376,2]
[382578098,1756673457439,-151.0,0.00017376,2]
[382578100,1756673457448,-480.0,0.00017376,2]
[382578102,1756673457457,-535.16,0.00017376,2]
[382578104,1756673457467,-151.0,0.00017376,2]
[382578106,1756673457476,-480.0,0.00017376,2]
[382578108,1756673457485,-577.8,0.00017376,2]
[382578110,1756673457495,-481.42,0.00017376,2]
[382578112,1756673457503,-480.0,0.00017376,2]
[382578114,1756673457513,-151.0,0.00017376,2]
[382578116,1756673457523,-151.0,0.00017376,2]
[382578118,1756673457533,-151.0,0.00017376,2]
[382578120,1756673457549,-151.0,0.00017376,2]
[382578122,1756673457558,-203.171583,0.00017376,2]
[382578124,1756673457568,-486.0,0.00017417,2]
[382578126,1756673457577,-1037.0,0.00017435,2]
[382578128,1756673457586,-486.0,0.00017446,2]
[382578129,1756673457595,-151.0,0.00017467,2]
[382578131,1756673457604,-14404.35862288,0.00017467,2]
[382578133,1756673457613,-486.0,0.00017486,2]
[382578135,1756673457623,-151.0,0.00017494,2]
[382578137,1756673457634,-160.120775,0.00017494,2]
[382578139,1756673457643,-160.120775,0.00017494,2]
[382578141,1756673457652,-160.120775,0.00017494,2]
[382578143,1756673457661,-160.120783,0.00017494,2]
[382578145,1756673457672,-1708.0,0.00017494,2]
[382578147,1756673457682,-729.42,0.0001753,2]
[382578149,1756673457691,-897.0,0.0001753,2]
[382578151,1756673457702,-867.52,0.0001753,2]
[382578153,1756673457711,-480.0,0.0001753,2]
[382578155,1756673457720,-480.0,0.0001753,2]
[382578157,1756673457730,-480.0,0.0001753,2]
[382578159,1756673457739,-480.0,0.0001753,2]
[382578161,1756673457749,-480.0,0.0001753,2]
[382578163,1756673457758,-436.0,0.00017563,2]
[382578164,1756673457766,-2098.79470144,0.000176,2]
[382578166,1756673457776,-5407.0,0.00017616,2]
[382578168,1756673457786,-152.0,0.00017616,2]
[382578170,1756673457796,-151.0,0.00017616,2]
[382578172,1756673457806,-1014.00608882,0.00017621,2]
[382578174,1756673457815,-1004.30330387,0.00017621,2]
[382578176,1756673457825,-1000.0,0.00017621,2]
[382578178,1756673457834,-1000.0,0.00017621,2]
[382578180,1756673457844,-1000.0,0.00017621,2]
[382578182,1756673457853,-1000.0,0.00017621,2]
[382578184,1756673457862,-1000.0,0.00017621,2]
[382578186,1756673457871,-1000.0,0.00017621,2]
[382578188,1756673457880,-1000.0,0.00017621,2]
[382578190,1756673457889,-1000.0,0.00017621,2]
[382578192,1756673457899,-1000.0,0.00017621,2]
[382578194,1756673457908,-1000.0,0.00017621,2]
[382578196,1756673457917,-1000.0,0.00017621,2]
[382578198,1756673457926,-1000.0,0.00017621,2]
[382578199,1756673457935,-151.0,0.00017621,2]
[382578201,1756673457944,-151.0,0.00017621,2]
[382578203,1756673457953,-500.0,0.00017622,2]
[382578205,1756673457963,-486.0,0.00017623,2]
[382578207,1756673457972,-485.39,0.00017646,2]
[382578209,1756673457981,-480.0,0.00017646,2]
[382578211,1756673457990,-1365.93,0.00017646,2]
[382578213,1756673457999,-730.45,0.00017646,2]
[382578215,1756673458008,-942.24,0.00017646,2]
[382578217,1756673458018,-962.74,0.00017646,2]
[382578219,1756673458027,-779.31,0.00017646,2]
[382578220,1756673458035,-481.12,0.00017646,2]
[382578222,1756673458045,-493.87,0.00017646,2]
[382578224,1756673458054,-480.0,0.00017646,2]
[382578226,1756673458064,-480.0,0.00017646,2]
[382578227,1756673458073,-583.55,0.00017646,2]
[382578228,1756673458082,-480.0,0.00017646,2]
[382578229,1756673458091,-504.26,0.00017646,2]
[382578230,1756673458099,-724.91,0.00017646,2]
[382578231,1756673458109,-480.0,0.00017646,2]
[382578232,1756673458117,-480.0,0.00017646,2]
[382578233,1756673458126,-480.0,0.00017646,2]
[382578234,1756673458135,-480.0,0.00017646,2]
[382578235,1756673458144,-838.03,0.00017646,2]
[382578236,1756673458153,-480.0,0.00017646,2]
[382578237,1756673458162,-832.52,0.00017646,2]
[382578238,1756673458171,-538.97,0.00017646,2]
[382578239,1756673458180,-480.0,0.00017646,2]
[382578240,1756673458189,-480.0,0.00017646,2]
[382578241,1756673458198,-480.0,0.00017646,2]
[382578242,1756673458207,-429.64209308,0.00017646,2]
[382578243,1756673458220,-888.43,0.00017646,2]
[382578244,1756673458229,-584.41,0.00017646,2]
[382578245,1756673458238,-677.01,0.00017646,2]
[382578246,1756673458247,-1118.76,0.00017646,2]
[382578247,1756673458255,-617.52,0.00017646,2]
[382578248,1756673458264,-480.0,0.00017646,2]
[382578249,1756673458273,-1071.48,0.00017646,2]
[382578250,1756673458282,-480.0,0.00017646,2]
[382578251,1756673458291,-701.86,0.00017646,2]
[382578252,1756673458300,-2058.26,0.00017646,2]
[382578253,1756673458309,-480.0,0.00017646,2]
[382578254,1756673458318,-970.63,0.00017646,2]
[382578255,1756673458327,-702.06,0.00017646,2]
[382578257,1756673458335,-480.0,0.00017646,2]
[382578259,1756673458345,-480.0,0.00017646,2]
[382578261,1756673458356,-480.0,0.00017646,2]
[382578263,1756673458365,-486.67,0.00017646,2]
[382578265,1756673458374,-480.0,0.00017646,2]
[382578267,1756673458383,-480.0,0.00017646,2]
[382578269,1756673458392,-480.0,0.00017646,2]
[382578271,1756673458402,-480.0,0.00017646,2]
[382578273,1756673458411,-480.0,0.00017646,2]
[382578275,1756673458421,-480.0,0.00017646,2]
[382578277,1756673458432,-480.0,0.00017646,2]
[382578279,1756673458442,-480.0,0.00017646,2]
[382578281,1756673458453,-480.0,0.00017646,2]
[382578283,1756673458462,-603.89,0.00017646,2]
[382578285,1756673458472,-656.8,0.00017646,2]
[382578287,1756673458483,-1008.63,0.00017646,2]
[382578289,1756673458495,-480.0,0.00017646,2]
[382578291,1756673458507,-480.0,0.00017646,2]
[382578293,1756673458518,-480.0,0.00017646,2]
[382578295,1756673458527,-803.3,0.00017646,2]
[382578297,1756673458536,-1061.84,0.00017646,2]
[382578299,1756673458545,-480.0,0.00017646,2]
[382578301,1756673458554,-776.56,0.00017646,2]
[382578302,1756673458563,-641.26,0.00017646,2]
[382578304,1756673458572,-480.0,0.00017646,2]
[382578306,1756673458581,-468.1258802,0.00017646,2]
[382578308,1756673458590,-480.0,0.00017646,2]
[382578310,1756673458599,-480.0,0.00017646,2]
[382578312,1756673458608,-480.0,0.00017646,2]
[382578314,1756673458618,-818.38,0.00017646,2]
[382578316,1756673458627,-613.27,0.00017646,2]
[382578318,1756673458636,-624.48,0.00017646,2]
[382578320,1756673458645,-504.19,0.00017646,2]
[382578322,1756673458654,-151.0,0.00017646,2]
[382578324,1756673458663,-837.05,0.00017646,2]
[382578326,1756673458675,-151.0,0.00017646,2]
[382578328,1756673458684,-633.12,0.00017646,2]
[382578330,1756673458694,-480.0,0.00017646,2]
[382578332,1756673458710,-151.0,0.00017646,2]
[382578334,1756673458719,-934.65,0.00017646,2]
[382578336,1756673458728,-522.7,0.00017646,2]
[382578338,1756673458737,-480.0,0.00017646,2]
[382578340,1756673458747,-1701.15,0.00017646,2]
[382578342,1756673458756,-151.0,0.00017646,2]
[382578344,1756673458765,-982.79,0.00017646,2]
[382578346,1756673458775,-151.0,0.00017646,2]
[382578348,1756673458784,-151.0,0.00017646,2]
[382578350,1756673458794,-480.0,0.00017646,2]
[382578352,1756673458810,-672.08,0.00017646,2]
[382578354,1756673458827,-843.17,0.00017646,2]
[382578356,1756673458847,-480.0,0.00017646,2]
[382578358,1756673458858,-1505.5,0.00017646,2]
[382578360,1756673458867,-480.0,0.00017646,2]
[382578362,1756673458876,-259.411577,0.00017646,2]
[382578364,1756673458886,-630.56,0.00017646,2]
[382578366,1756673458895,-480.0,0.00017646,2]
[382578368,1756673458904,-872.42,0.00017646,2]
[382578370,1756673458913,-480.0,0.00017646,2]
[382578372,1756673458924,-480.0,0.00017646,2]
[382578374,1756673458933,-514.38,0.00017646,2]
[382578376,1756673458942,-480.0,0.00017647,2]
[382578378,1756673458951,-584.67169518,0.00017647,2]
[382578380,1756673458959,-480.0,0.00017647,2]
[382578381,1756673458968,-480.0,0.00017647,2]
[382578383,1756673458977,-480.0,0.00017647,2]
[382578385,1756673458986,-480.0,0.00017647,2]
[382578387,1756673458996,-480.0,0.00017647,2]
[382578389,1756673459004,-593.38,0.00017647,2]
[382578391,1756673459014,-480.0,0.00017647,2]
[382578393,1756673459022,-1220.51,0.00017647,2]
[382578395,1756673459032,-151.0,0.00017647,2]
[382578397,1756673459041,-480.0,0.00017647,2]
[382578399,1756673459050,-480.0,0.00017647,2]
[382578401,1756673459059,-480.0,0.00017647,2]
[382578403,1756673459068,-1022.86,0.00017647,2]
[382578405,1756673459077,-916.14,0.00017647,2]
[382578407,1756673459086,-850.93,0.00017647,2]
[382578425,1756673459238,-480.0,0.00017647,2]
[382578427,1756673459248,-480.0,0.00017647,2]
[382578429,1756673459257,-480.0,0.00017647,2]
[382578431,1756673459266,-480.0,0.00017647,2]
[382578433,1756673459275,-480.0,0.00017647,2]
[382578435,1756673459285,-480.0,0.00017647,2]
[382578437,1756673459294,-480.0,0.00017647,2]
[382578439,1756673459308,-1186.69,0.00017647,2]
[382578441,1756673459317,-842.98,0.00017647,2]
[382578443,1756673459326,-825.1,0.00017647,2]
[382578445,1756673459335,-881.13,0.00017647,2]
[382578447,1756673459344,-1039.06,0.00017647,2]
[382578449,1756673459353,-3326.58,0.00017647,2]
[382578451,1756673459362,-722.88,0.00017647,2]
[382578453,1756673459371,-1423.76,0.00017647,2]
[382578455,1756673459380,-480.0,0.00017647,2]
[382578457,1756673459390,-480.0,0.00017647,2]
[382578459,1756673459399,-1015.8,0.00017647,2]
[382578461,1756673459408,-480.0,0.00017647,2]
[382578464,1756673459418,-480.0,0.00017647,2]
[382578466,1756673459427,-5491.99,0.00017647,2]
[382578467,1756673459436,-507.06,0.00017647,2]
[382578470,1756673459447,-480.0,0.00017647,2]
[382578472,1756673459456,-4163.29,0.00017647,2]
[382578474,1756673459465,-480.0,0.00017647,2]
[382578476,1756673459474,-1040.86,0.00017647,2]
[382578478,1756673459483,-484.48,0.00017647,2]
[382578480,1756673459493,-480.0,0.00017647,2]
[382578482,1756673459502,-1868.72,0.00017647,2]
[382578484,1756673459511,-620.62,0.00017647,2]
[382578486,1756673459520,-480.0,0.00017647,2]
[382578487,1756673459530,-480.0,0.00017647,2]
[382578490,1756673459544,-1102.26,0.00017647,2]
[382578492,1756673459553,-480.0,0.00017647,2]
[382578494,1756673459563,-3885.57,0.00017647,2]
[382578496,1756673459572,-531.27,0.00017647,2]
[382578498,1756673459583,-480.0,0.00017647,2]
[382578500,1756673459592,-480.0,0.00017647,2]
[382578502,1756673459601,-279.51962436,0.00017647,2]
[382578504,1756673459611,-2614.63,0.00017647,2]
[382578506,1756673459620,-480.0,0.00017647,2]
[382578508,1756673459630,-480.0,0.00017647,2]
[382578510,1756673459640,-481.17,0.00017647,2]
[382578512,1756673459649,-822.54,0.00017647,2]
[382578514,1756673459659,-765.06,0.00017648,2]
[382578516,1756673459669,-480.0,0.00017648,2]
[382578518,1756673459678,-480.0,0.00017648,2]
[382578520,1756673459688,-480.0,0.00017648,2]
[382578522,1756673459697,-480.0,0.00017648,2]
[382578524,1756673459707,-480.0,0.00017648,2]
[382578526,1756673459717,-480.0,0.00017648,2]
[382578528,1756673459727,-284.048892,0.00017648,2]
[382578530,1756673459736,-480.0,0.00017648,2]